{"text_format":"1","workbook":"xlsx","n_sheets":3,"sheets":["調査票（直接入力）","コード表","コード・短縮項目名"],"not_rendered":{"charts":0,"images":1,"macros":1,"external_links":0,"defined_names":30,"comments":0,"pivot_tables":0},"unopened":[],"bounds":{"document_bytes":16777216,"sheet_cells":100000,"rows_first":2000,"rows_last":500,"rows_between":2000,"halvings":0,"cell_chars":16384,"cell_head_chars":4096},"cells_cut":0,"cells_raw":0,"read":"whole","date_system":"1900"}

{"sheet":"調査票（直接入力）","index":0,"n_rows":2518,"n_cols":25,"rows_kept":2518,"cut":false,"hidden":false,"merged":[[5,6,5,11],[5,22,5,24],[6,22,6,24],[1,20,1,21],[2,20,2,21],[3,20,3,21],[4,19,4,21],[5,20,5,21],[1,22,1,24],[2,22,2,24],[3,22,3,24],[4,22,4,24],[6,20,6,21],[8,1,11,1],[8,9,8,11],[9,10,11,10],[10,17,11,17],[9,14,9,18],[10,18,11,18],[10,16,11,16],[9,11,11,11],[8,2,11,2],[9,3,11,3],[8,3,8,8],[9,4,11,4],[9,5,11,5],[9,6,11,6],[9,7,11,7],[9,8,11,8],[9,9,11,9],[9,23,11,23],[9,24,11,24],[10,12,11,12],[10,13,11,13],[10,14,11,14],[10,15,11,15],[9,12,9,13],[9,20,11,20],[9,21,11,21],[9,22,11,22],[8,19,11,19],[8,20,8,24],[8,12,8,18]]}
[null,null,null,null,null,null,null,null,null,null,null,null,null,null,null,null,null,null,null,null,null,null,"連絡先"]
[null,null,null,null,null,null,null,null,null,null,null,null,null,null,null,null,null,null,null,null,"機関コード："]
[null,null,null,null,null,null,null,null,null,null,null,null,null,null,null,null,null,null,null,null,"機関名："]
[null,null,null,null,null,null,"「ポストドクター等の雇用・進路に関する調査」調査票（2018年度実績）",null,null,null,null,null,null,null,null,null,null,null,null,null,"所属部署："]
[null,null,null,null,null,null,null,null,null,null,null,null,null,null,null,null,null,null,null,"担当者名（ふりがな）："]
[null,null,null,null,null,null,"ポストドクター等在籍者総数  (2018年度）実績",null,null,null,null,null,null,null,null,null,null,null,null,null,"電話番号："]
[null,null,null,null,null,null,null,null,null,null,null,null,null,null,null,null,null,null,null,null,"メールアドレス："]
[]
[null,null,"1.氏名等（整理用）","ポストドクター等の基本情報",null,null,null,null,null,"ポストドクター等の採用前の状況",null,null,"ポストドクター等の研究・雇用状況",null,null,null,null,null,null,"18.在籍状況\n（2019年４月１日時点）","ポストドクター等の転出・異動後の状況"]
[null,null,null,"2.学部・研究科・部署の名称","3.性別\n(戸籍上)","4.国籍・地域","5.生年\n（西暦4ケタ）","6.博士課程修了年度\n（西暦4ケタ）","7.博士号の有無","8.採用前の職業等","9.所属","10.所在","研究状況",null,"雇用状況",null,null,null,null,null,"19.転出・異動後の職業等","20.所属","21.所在","22.任期","23.詳細"]
[null,null,null,null,null,null,null,null,null,null,null,null,"11.分野","12.在籍研究室の企業との共同・受託研究の実績","13.主な雇用財源","14.機関負担の社会保険加入状況","15.所属開始年\n（西暦4ケタ）","16. 任期の長さ\n","17. 契約可能な最長期間\n"]
[]
[null,1]
[null,2]
[null,3]
[null,4]
[null,5]
[null,6]
[null,7]
[null,8]
[null,9]
[null,10]
[null,11]
[null,12]
[null,13]
[null,14]
[null,15]
[null,16]
[null,17]
[null,18]
[null,19]
[null,20]
[null,21]
[null,22]
[null,23]
[null,24]
[null,25]
[null,26]
[null,27]
[null,28]
[null,29]
[null,30]
[null,31]
[null,32]
[null,33]
[null,34]
[null,35]
[null,36]
[null,37]
[null,38]
[null,39]
[null,40]
[null,41]
[null,42]
[null,43]
[null,44]
[null,45]
[null,46]
[null,47]
[null,48]
[null,49]
[null,50]
[null,51]
[null,52]
[null,53]
[null,54]
[null,55]
[null,56]
[null,57]
[null,58]
[null,59]
[null,60]
[null,61]
[null,62]
[null,63]
[null,64]
[null,65]
[null,66]
[null,67]
[null,68]
[null,69]
[null,70]
[null,71]
[null,72]
[null,73]
[null,74]
[null,75]
[null,76]
[null,77]
[null,78]
[null,79]
[null,80]
[null,81]
[null,82]
[null,83]
[null,84]
[null,85]
[null,86]
[null,87]
[null,88]
[null,89]
[null,90]
[null,91]
[null,92]
[null,93]
[null,94]
[null,95]
[null,96]
[null,97]
[null,98]
[null,99]
[null,100]
[null,101]
[null,102]
[null,103]
[null,104]
[null,105]
[null,106]
[null,107]
[null,108]
[null,109]
[null,110]
[null,111]
[null,112]
[null,113]
[null,114]
[null,115]
[null,116]
[null,117]
[null,118]
[null,119]
[null,120]
[null,121]
[null,122]
[null,123]
[null,124]
[null,125]
[null,126]
[null,127]
[null,128]
[null,129]
[null,130]
[null,131]
[null,132]
[null,133]
[null,134]
[null,135]
[null,136]
[null,137]
[null,138]
[null,139]
[null,140]
[null,141]
[null,142]
[null,143]
[null,144]
[null,145]
[null,146]
[null,147]
[null,148]
[null,149]
[null,150]
[null,151]
[null,152]
[null,153]
[null,154]
[null,155]
[null,156]
[null,157]
[null,158]
[null,159]
[null,160]
[null,161]
[null,162]
[null,163]
[null,164]
[null,165]
[null,166]
[null,167]
[null,168]
[null,169]
[null,170]
[null,171]
[null,172]
[null,173]
[null,174]
[null,175]
[null,176]
[null,177]
[null,178]
[null,179]
[null,180]
[null,181]
[null,182]
[null,183]
[null,184]
[null,185]
[null,186]
[null,187]
[null,188]
[null,189]
[null,190]
[null,191]
[null,192]
[null,193]
[null,194]
[null,195]
[null,196]
[null,197]
[null,198]
[null,199]
[null,200]
[null,201]
[null,202]
[null,203]
[null,204]
[null,205]
[null,206]
[null,207]
[null,208]
[null,209]
[null,210]
[null,211]
[null,212]
[null,213]
[null,214]
[null,215]
[null,216]
[null,217]
[null,218]
[null,219]
[null,220]
[null,221]
[null,222]
[null,223]
[null,224]
[null,225]
[null,226]
[null,227]
[null,228]
[null,229]
[null,230]
[null,231]
[null,232]
[null,233]
[null,234]
[null,235]
[null,236]
[null,237]
[null,238]
[null,239]
[null,240]
[null,241]
[null,242]
[null,243]
[null,244]
[null,245]
[null,246]
[null,247]
[null,248]
[null,249]
[null,250]
[null,251]
[null,252]
[null,253]
[null,254]
[null,255]
[null,256]
[null,257]
[null,258]
[null,259]
[null,260]
[null,261]
[null,262]
[null,263]
[null,264]
[null,265]
[null,266]
[null,267]
[null,268]
[null,269]
[null,270]
[null,271]
[null,272]
[null,273]
[null,274]
[null,275]
[null,276]
[null,277]
[null,278]
[null,279]
[null,280]
[null,281]
[null,282]
[null,283]
[null,284]
[null,285]
[null,286]
[null,287]
[null,288]
[null,289]
[null,290]
[null,291]
[null,292]
[null,293]
[null,294]
[null,295]
[null,296]
[null,297]
[null,298]
[null,299]
[null,300]
[null,301]
[null,302]
[null,303]
[null,304]
[null,305]
[null,306]
[null,307]
[null,308]
[null,309]
[null,310]
[null,311]
[null,312]
[null,313]
[null,314]
[null,315]
[null,316]
[null,317]
[null,318]
[null,319]
[null,320]
[null,321]
[null,322]
[null,323]
[null,324]
[null,325]
[null,326]
[null,327]
[null,328]
[null,329]
[null,330]
[null,331]
[null,332]
[null,333]
[null,334]
[null,335]
[null,336]
[null,337]
[null,338]
[null,339]
[null,340]
[null,341]
[null,342]
[null,343]
[null,344]
[null,345]
[null,346]
[null,347]
[null,348]
[null,349]
[null,350]
[null,351]
[null,352]
[null,353]
[null,354]
[null,355]
[null,356]
[null,357]
[null,358]
[null,359]
[null,360]
[null,361]
[null,362]
[null,363]
[null,364]
[null,365]
[null,366]
[null,367]
[null,368]
[null,369]
[null,370]
[null,371]
[null,372]
[null,373]
[null,374]
[null,375]
[null,376]
[null,377]
[null,378]
[null,379]
[null,380]
[null,381]
[null,382]
[null,383]
[null,384]
[null,385]
[null,386]
[null,387]
[null,388]
[null,389]
[null,390]
[null,391]
[null,392]
[null,393]
[null,394]
[null,395]
[null,396]
[null,397]
[null,398]
[null,399]
[null,400]
[null,401]
[null,402]
[null,403]
[null,404]
[null,405]
[null,406]
[null,407]
[null,408]
[null,409]
[null,410]
[null,411]
[null,412]
[null,413]
[null,414]
[null,415]
[null,416]
[null,417]
[null,418]
[null,419]
[null,420]
[null,421]
[null,422]
[null,423]
[null,424]
[null,425]
[null,426]
[null,427]
[null,428]
[null,429]
[null,430]
[null,431]
[null,432]
[null,433]
[null,434]
[null,435]
[null,436]
[null,437]
[null,438]
[null,439]
[null,440]
[null,441]
[null,442]
[null,443]
[null,444]
[null,445]
[null,446]
[null,447]
[null,448]
[null,449]
[null,450]
[null,451]
[null,452]
[null,453]
[null,454]
[null,455]
[null,456]
[null,457]
[null,458]
[null,459]
[null,460]
[null,461]
[null,462]
[null,463]
[null,464]
[null,465]
[null,466]
[null,467]
[null,468]
[null,469]
[null,470]
[null,471]
[null,472]
[null,473]
[null,474]
[null,475]
[null,476]
[null,477]
[null,478]
[null,479]
[null,480]
[null,481]
[null,482]
[null,483]
[null,484]
[null,485]
[null,486]
[null,487]
[null,488]
[null,489]
[null,490]
[null,491]
[null,492]
[null,493]
[null,494]
[null,495]
[null,496]
[null,497]
[null,498]
[null,499]
[null,500]
[null,501]
[null,502]
[null,503]
[null,504]
[null,505]
[null,506]
[null,507]
[null,508]
[null,509]
[null,510]
[null,511]
[null,512]
[null,513]
[null,514]
[null,515]
[null,516]
[null,517]
[null,518]
[null,519]
[null,520]
[null,521]
[null,522]
[null,523]
[null,524]
[null,525]
[null,526]
[null,527]
[null,528]
[null,529]
[null,530]
[null,531]
[null,532]
[null,533]
[null,534]
[null,535]
[null,536]
[null,537]
[null,538]
[null,539]
[null,540]
[null,541]
[null,542]
[null,543]
[null,544]
[null,545]
[null,546]
[null,547]
[null,548]
[null,549]
[null,550]
[null,551]
[null,552]
[null,553]
[null,554]
[null,555]
[null,556]
[null,557]
[null,558]
[null,559]
[null,560]
[null,561]
[null,562]
[null,563]
[null,564]
[null,565]
[null,566]
[null,567]
[null,568]
[null,569]
[null,570]
[null,571]
[null,572]
[null,573]
[null,574]
[null,575]
[null,576]
[null,577]
[null,578]
[null,579]
[null,580]
[null,581]
[null,582]
[null,583]
[null,584]
[null,585]
[null,586]
[null,587]
[null,588]
[null,589]
[null,590]
[null,591]
[null,592]
[null,593]
[null,594]
[null,595]
[null,596]
[null,597]
[null,598]
[null,599]
[null,600]
[null,601]
[null,602]
[null,603]
[null,604]
[null,605]
[null,606]
[null,607]
[null,608]
[null,609]
[null,610]
[null,611]
[null,612]
[null,613]
[null,614]
[null,615]
[null,616]
[null,617]
[null,618]
[null,619]
[null,620]
[null,621]
[null,622]
[null,623]
[null,624]
[null,625]
[null,626]
[null,627]
[null,628]
[null,629]
[null,630]
[null,631]
[null,632]
[null,633]
[null,634]
[null,635]
[null,636]
[null,637]
[null,638]
[null,639]
[null,640]
[null,641]
[null,642]
[null,643]
[null,644]
[null,645]
[null,646]
[null,647]
[null,648]
[null,649]
[null,650]
[null,651]
[null,652]
[null,653]
[null,654]
[null,655]
[null,656]
[null,657]
[null,658]
[null,659]
[null,660]
[null,661]
[null,662]
[null,663]
[null,664]
[null,665]
[null,666]
[null,667]
[null,668]
[null,669]
[null,670]
[null,671]
[null,672]
[null,673]
[null,674]
[null,675]
[null,676]
[null,677]
[null,678]
[null,679]
[null,680]
[null,681]
[null,682]
[null,683]
[null,684]
[null,685]
[null,686]
[null,687]
[null,688]
[null,689]
[null,690]
[null,691]
[null,692]
[null,693]
[null,694]
[null,695]
[null,696]
[null,697]
[null,698]
[null,699]
[null,700]
[null,701]
[null,702]
[null,703]
[null,704]
[null,705]
[null,706]
[null,707]
[null,708]
[null,709]
[null,710]
[null,711]
[null,712]
[null,713]
[null,714]
[null,715]
[null,716]
[null,717]
[null,718]
[null,719]
[null,720]
[null,721]
[null,722]
[null,723]
[null,724]
[null,725]
[null,726]
[null,727]
[null,728]
[null,729]
[null,730]
[null,731]
[null,732]
[null,733]
[null,734]
[null,735]
[null,736]
[null,737]
[null,738]
[null,739]
[null,740]
[null,741]
[null,742]
[null,743]
[null,744]
[null,745]
[null,746]
[null,747]
[null,748]
[null,749]
[null,750]
[null,751]
[null,752]
[null,753]
[null,754]
[null,755]
[null,756]
[null,757]
[null,758]
[null,759]
[null,760]
[null,761]
[null,762]
[null,763]
[null,764]
[null,765]
[null,766]
[null,767]
[null,768]
[null,769]
[null,770]
[null,771]
[null,772]
[null,773]
[null,774]
[null,775]
[null,776]
[null,777]
[null,778]
[null,779]
[null,780]
[null,781]
[null,782]
[null,783]
[null,784]
[null,785]
[null,786]
[null,787]
[null,788]
[null,789]
[null,790]
[null,791]
[null,792]
[null,793]
[null,794]
[null,795]
[null,796]
[null,797]
[null,798]
[null,799]
[null,800]
[null,801]
[null,802]
[null,803]
[null,804]
[null,805]
[null,806]
[null,807]
[null,808]
[null,809]
[null,810]
[null,811]
[null,812]
[null,813]
[null,814]
[null,815]
[null,816]
[null,817]
[null,818]
[null,819]
[null,820]
[null,821]
[null,822]
[null,823]
[null,824]
[null,825]
[null,826]
[null,827]
[null,828]
[null,829]
[null,830]
[null,831]
[null,832]
[null,833]
[null,834]
[null,835]
[null,836]
[null,837]
[null,838]
[null,839]
[null,840]
[null,841]
[null,842]
[null,843]
[null,844]
[null,845]
[null,846]
[null,847]
[null,848]
[null,849]
[null,850]
[null,851]
[null,852]
[null,853]
[null,854]
[null,855]
[null,856]
[null,857]
[null,858]
[null,859]
[null,860]
[null,861]
[null,862]
[null,863]
[null,864]
[null,865]
[null,866]
[null,867]
[null,868]
[null,869]
[null,870]
[null,871]
[null,872]
[null,873]
[null,874]
[null,875]
[null,876]
[null,877]
[null,878]
[null,879]
[null,880]
[null,881]
[null,882]
[null,883]
[null,884]
[null,885]
[null,886]
[null,887]
[null,888]
[null,889]
[null,890]
[null,891]
[null,892]
[null,893]
[null,894]
[null,895]
[null,896]
[null,897]
[null,898]
[null,899]
[null,900]
[null,901]
[null,902]
[null,903]
[null,904]
[null,905]
[null,906]
[null,907]
[null,908]
[null,909]
[null,910]
[null,911]
[null,912]
[null,913]
[null,914]
[null,915]
[null,916]
[null,917]
[null,918]
[null,919]
[null,920]
[null,921]
[null,922]
[null,923]
[null,924]
[null,925]
[null,926]
[null,927]
[null,928]
[null,929]
[null,930]
[null,931]
[null,932]
[null,933]
[null,934]
[null,935]
[null,936]
[null,937]
[null,938]
[null,939]
[null,940]
[null,941]
[null,942]
[null,943]
[null,944]
[null,945]
[null,946]
[null,947]
[null,948]
[null,949]
[null,950]
[null,951]
[null,952]
[null,953]
[null,954]
[null,955]
[null,956]
[null,957]
[null,958]
[null,959]
[null,960]
[null,961]
[null,962]
[null,963]
[null,964]
[null,965]
[null,966]
[null,967]
[null,968]
[null,969]
[null,970]
[null,971]
[null,972]
[null,973]
[null,974]
[null,975]
[null,976]
[null,977]
[null,978]
[null,979]
[null,980]
[null,981]
[null,982]
[null,983]
[null,984]
[null,985]
[null,986]
[null,987]
[null,988]
[null,989]
[null,990]
[null,991]
[null,992]
[null,993]
[null,994]
[null,995]
[null,996]
[null,997]
[null,998]
[null,999]
[null,1000]
[null,1001]
[null,1002]
[null,1003]
[null,1004]
[null,1005]
[null,1006]
[null,1007]
[null,1008]
[null,1009]
[null,1010]
[null,1011]
[null,1012]
[null,1013]
[null,1014]
[null,1015]
[null,1016]
[null,1017]
[null,1018]
[null,1019]
[null,1020]
[null,1021]
[null,1022]
[null,1023]
[null,1024]
[null,1025]
[null,1026]
[null,1027]
[null,1028]
[null,1029]
[null,1030]
[null,1031]
[null,1032]
[null,1033]
[null,1034]
[null,1035]
[null,1036]
[null,1037]
[null,1038]
[null,1039]
[null,1040]
[null,1041]
[null,1042]
[null,1043]
[null,1044]
[null,1045]
[null,1046]
[null,1047]
[null,1048]
[null,1049]
[null,1050]
[null,1051]
[null,1052]
[null,1053]
[null,1054]
[null,1055]
[null,1056]
[null,1057]
[null,1058]
[null,1059]
[null,1060]
[null,1061]
[null,1062]
[null,1063]
[null,1064]
[null,1065]
[null,1066]
[null,1067]
[null,1068]
[null,1069]
[null,1070]
[null,1071]
[null,1072]
[null,1073]
[null,1074]
[null,1075]
[null,1076]
[null,1077]
[null,1078]
[null,1079]
[null,1080]
[null,1081]
[null,1082]
[null,1083]
[null,1084]
[null,1085]
[null,1086]
[null,1087]
[null,1088]
[null,1089]
[null,1090]
[null,1091]
[null,1092]
[null,1093]
[null,1094]
[null,1095]
[null,1096]
[null,1097]
[null,1098]
[null,1099]
[null,1100]
[null,1101]
[null,1102]
[null,1103]
[null,1104]
[null,1105]
[null,1106]
[null,1107]
[null,1108]
[null,1109]
[null,1110]
[null,1111]
[null,1112]
[null,1113]
[null,1114]
[null,1115]
[null,1116]
[null,1117]
[null,1118]
[null,1119]
[null,1120]
[null,1121]
[null,1122]
[null,1123]
[null,1124]
[null,1125]
[null,1126]
[null,1127]
[null,1128]
[null,1129]
[null,1130]
[null,1131]
[null,1132]
[null,1133]
[null,1134]
[null,1135]
[null,1136]
[null,1137]
[null,1138]
[null,1139]
[null,1140]
[null,1141]
[null,1142]
[null,1143]
[null,1144]
[null,1145]
[null,1146]
[null,1147]
[null,1148]
[null,1149]
[null,1150]
[null,1151]
[null,1152]
[null,1153]
[null,1154]
[null,1155]
[null,1156]
[null,1157]
[null,1158]
[null,1159]
[null,1160]
[null,1161]
[null,1162]
[null,1163]
[null,1164]
[null,1165]
[null,1166]
[null,1167]
[null,1168]
[null,1169]
[null,1170]
[null,1171]
[null,1172]
[null,1173]
[null,1174]
[null,1175]
[null,1176]
[null,1177]
[null,1178]
[null,1179]
[null,1180]
[null,1181]
[null,1182]
[null,1183]
[null,1184]
[null,1185]
[null,1186]
[null,1187]
[null,1188]
[null,1189]
[null,1190]
[null,1191]
[null,1192]
[null,1193]
[null,1194]
[null,1195]
[null,1196]
[null,1197]
[null,1198]
[null,1199]
[null,1200]
[null,1201]
[null,1202]
[null,1203]
[null,1204]
[null,1205]
[null,1206]
[null,1207]
[null,1208]
[null,1209]
[null,1210]
[null,1211]
[null,1212]
[null,1213]
[null,1214]
[null,1215]
[null,1216]
[null,1217]
[null,1218]
[null,1219]
[null,1220]
[null,1221]
[null,1222]
[null,1223]
[null,1224]
[null,1225]
[null,1226]
[null,1227]
[null,1228]
[null,1229]
[null,1230]
[null,1231]
[null,1232]
[null,1233]
[null,1234]
[null,1235]
[null,1236]
[null,1237]
[null,1238]
[null,1239]
[null,1240]
[null,1241]
[null,1242]
[null,1243]
[null,1244]
[null,1245]
[null,1246]
[null,1247]
[null,1248]
[null,1249]
[null,1250]
[null,1251]
[null,1252]
[null,1253]
[null,1254]
[null,1255]
[null,1256]
[null,1257]
[null,1258]
[null,1259]
[null,1260]
[null,1261]
[null,1262]
[null,1263]
[null,1264]
[null,1265]
[null,1266]
[null,1267]
[null,1268]
[null,1269]
[null,1270]
[null,1271]
[null,1272]
[null,1273]
[null,1274]
[null,1275]
[null,1276]
[null,1277]
[null,1278]
[null,1279]
[null,1280]
[null,1281]
[null,1282]
[null,1283]
[null,1284]
[null,1285]
[null,1286]
[null,1287]
[null,1288]
[null,1289]
[null,1290]
[null,1291]
[null,1292]
[null,1293]
[null,1294]
[null,1295]
[null,1296]
[null,1297]
[null,1298]
[null,1299]
[null,1300]
[null,1301]
[null,1302]
[null,1303]
[null,1304]
[null,1305]
[null,1306]
[null,1307]
[null,1308]
[null,1309]
[null,1310]
[null,1311]
[null,1312]
[null,1313]
[null,1314]
[null,1315]
[null,1316]
[null,1317]
[null,1318]
[null,1319]
[null,1320]
[null,1321]
[null,1322]
[null,1323]
[null,1324]
[null,1325]
[null,1326]
[null,1327]
[null,1328]
[null,1329]
[null,1330]
[null,1331]
[null,1332]
[null,1333]
[null,1334]
[null,1335]
[null,1336]
[null,1337]
[null,1338]
[null,1339]
[null,1340]
[null,1341]
[null,1342]
[null,1343]
[null,1344]
[null,1345]
[null,1346]
[null,1347]
[null,1348]
[null,1349]
[null,1350]
[null,1351]
[null,1352]
[null,1353]
[null,1354]
[null,1355]
[null,1356]
[null,1357]
[null,1358]
[null,1359]
[null,1360]
[null,1361]
[null,1362]
[null,1363]
[null,1364]
[null,1365]
[null,1366]
[null,1367]
[null,1368]
[null,1369]
[null,1370]
[null,1371]
[null,1372]
[null,1373]
[null,1374]
[null,1375]
[null,1376]
[null,1377]
[null,1378]
[null,1379]
[null,1380]
[null,1381]
[null,1382]
[null,1383]
[null,1384]
[null,1385]
[null,1386]
[null,1387]
[null,1388]
[null,1389]
[null,1390]
[null,1391]
[null,1392]
[null,1393]
[null,1394]
[null,1395]
[null,1396]
[null,1397]
[null,1398]
[null,1399]
[null,1400]
[null,1401]
[null,1402]
[null,1403]
[null,1404]
[null,1405]
[null,1406]
[null,1407]
[null,1408]
[null,1409]
[null,1410]
[null,1411]
[null,1412]
[null,1413]
[null,1414]
[null,1415]
[null,1416]
[null,1417]
[null,1418]
[null,1419]
[null,1420]
[null,1421]
[null,1422]
[null,1423]
[null,1424]
[null,1425]
[null,1426]
[null,1427]
[null,1428]
[null,1429]
[null,1430]
[null,1431]
[null,1432]
[null,1433]
[null,1434]
[null,1435]
[null,1436]
[null,1437]
[null,1438]
[null,1439]
[null,1440]
[null,1441]
[null,1442]
[null,1443]
[null,1444]
[null,1445]
[null,1446]
[null,1447]
[null,1448]
[null,1449]
[null,1450]
[null,1451]
[null,1452]
[null,1453]
[null,1454]
[null,1455]
[null,1456]
[null,1457]
[null,1458]
[null,1459]
[null,1460]
[null,1461]
[null,1462]
[null,1463]
[null,1464]
[null,1465]
[null,1466]
[null,1467]
[null,1468]
[null,1469]
[null,1470]
[null,1471]
[null,1472]
[null,1473]
[null,1474]
[null,1475]
[null,1476]
[null,1477]
[null,1478]
[null,1479]
[null,1480]
[null,1481]
[null,1482]
[null,1483]
[null,1484]
[null,1485]
[null,1486]
[null,1487]
[null,1488]
[null,1489]
[null,1490]
[null,1491]
[null,1492]
[null,1493]
[null,1494]
[null,1495]
[null,1496]
[null,1497]
[null,1498]
[null,1499]
[null,1500]
[null,1501]
[null,1502]
[null,1503]
[null,1504]
[null,1505]
[null,1506]
[null,1507]
[null,1508]
[null,1509]
[null,1510]
[null,1511]
[null,1512]
[null,1513]
[null,1514]
[null,1515]
[null,1516]
[null,1517]
[null,1518]
[null,1519]
[null,1520]
[null,1521]
[null,1522]
[null,1523]
[null,1524]
[null,1525]
[null,1526]
[null,1527]
[null,1528]
[null,1529]
[null,1530]
[null,1531]
[null,1532]
[null,1533]
[null,1534]
[null,1535]
[null,1536]
[null,1537]
[null,1538]
[null,1539]
[null,1540]
[null,1541]
[null,1542]
[null,1543]
[null,1544]
[null,1545]
[null,1546]
[null,1547]
[null,1548]
[null,1549]
[null,1550]
[null,1551]
[null,1552]
[null,1553]
[null,1554]
[null,1555]
[null,1556]
[null,1557]
[null,1558]
[null,1559]
[null,1560]
[null,1561]
[null,1562]
[null,1563]
[null,1564]
[null,1565]
[null,1566]
[null,1567]
[null,1568]
[null,1569]
[null,1570]
[null,1571]
[null,1572]
[null,1573]
[null,1574]
[null,1575]
[null,1576]
[null,1577]
[null,1578]
[null,1579]
[null,1580]
[null,1581]
[null,1582]
[null,1583]
[null,1584]
[null,1585]
[null,1586]
[null,1587]
[null,1588]
[null,1589]
[null,1590]
[null,1591]
[null,1592]
[null,1593]
[null,1594]
[null,1595]
[null,1596]
[null,1597]
[null,1598]
[null,1599]
[null,1600]
[null,1601]
[null,1602]
[null,1603]
[null,1604]
[null,1605]
[null,1606]
[null,1607]
[null,1608]
[null,1609]
[null,1610]
[null,1611]
[null,1612]
[null,1613]
[null,1614]
[null,1615]
[null,1616]
[null,1617]
[null,1618]
[null,1619]
[null,1620]
[null,1621]
[null,1622]
[null,1623]
[null,1624]
[null,1625]
[null,1626]
[null,1627]
[null,1628]
[null,1629]
[null,1630]
[null,1631]
[null,1632]
[null,1633]
[null,1634]
[null,1635]
[null,1636]
[null,1637]
[null,1638]
[null,1639]
[null,1640]
[null,1641]
[null,1642]
[null,1643]
[null,1644]
[null,1645]
[null,1646]
[null,1647]
[null,1648]
[null,1649]
[null,1650]
[null,1651]
[null,1652]
[null,1653]
[null,1654]
[null,1655]
[null,1656]
[null,1657]
[null,1658]
[null,1659]
[null,1660]
[null,1661]
[null,1662]
[null,1663]
[null,1664]
[null,1665]
[null,1666]
[null,1667]
[null,1668]
[null,1669]
[null,1670]
[null,1671]
[null,1672]
[null,1673]
[null,1674]
[null,1675]
[null,1676]
[null,1677]
[null,1678]
[null,1679]
[null,1680]
[null,1681]
[null,1682]
[null,1683]
[null,1684]
[null,1685]
[null,1686]
[null,1687]
[null,1688]
[null,1689]
[null,1690]
[null,1691]
[null,1692]
[null,1693]
[null,1694]
[null,1695]
[null,1696]
[null,1697]
[null,1698]
[null,1699]
[null,1700]
[null,1701]
[null,1702]
[null,1703]
[null,1704]
[null,1705]
[null,1706]
[null,1707]
[null,1708]
[null,1709]
[null,1710]
[null,1711]
[null,1712]
[null,1713]
[null,1714]
[null,1715]
[null,1716]
[null,1717]
[null,1718]
[null,1719]
[null,1720]
[null,1721]
[null,1722]
[null,1723]
[null,1724]
[null,1725]
[null,1726]
[null,1727]
[null,1728]
[null,1729]
[null,1730]
[null,1731]
[null,1732]
[null,1733]
[null,1734]
[null,1735]
[null,1736]
[null,1737]
[null,1738]
[null,1739]
[null,1740]
[null,1741]
[null,1742]
[null,1743]
[null,1744]
[null,1745]
[null,1746]
[null,1747]
[null,1748]
[null,1749]
[null,1750]
[null,1751]
[null,1752]
[null,1753]
[null,1754]
[null,1755]
[null,1756]
[null,1757]
[null,1758]
[null,1759]
[null,1760]
[null,1761]
[null,1762]
[null,1763]
[null,1764]
[null,1765]
[null,1766]
[null,1767]
[null,1768]
[null,1769]
[null,1770]
[null,1771]
[null,1772]
[null,1773]
[null,1774]
[null,1775]
[null,1776]
[null,1777]
[null,1778]
[null,1779]
[null,1780]
[null,1781]
[null,1782]
[null,1783]
[null,1784]
[null,1785]
[null,1786]
[null,1787]
[null,1788]
[null,1789]
[null,1790]
[null,1791]
[null,1792]
[null,1793]
[null,1794]
[null,1795]
[null,1796]
[null,1797]
[null,1798]
[null,1799]
[null,1800]
[null,1801]
[null,1802]
[null,1803]
[null,1804]
[null,1805]
[null,1806]
[null,1807]
[null,1808]
[null,1809]
[null,1810]
[null,1811]
[null,1812]
[null,1813]
[null,1814]
[null,1815]
[null,1816]
[null,1817]
[null,1818]
[null,1819]
[null,1820]
[null,1821]
[null,1822]
[null,1823]
[null,1824]
[null,1825]
[null,1826]
[null,1827]
[null,1828]
[null,1829]
[null,1830]
[null,1831]
[null,1832]
[null,1833]
[null,1834]
[null,1835]
[null,1836]
[null,1837]
[null,1838]
[null,1839]
[null,1840]
[null,1841]
[null,1842]
[null,1843]
[null,1844]
[null,1845]
[null,1846]
[null,1847]
[null,1848]
[null,1849]
[null,1850]
[null,1851]
[null,1852]
[null,1853]
[null,1854]
[null,1855]
[null,1856]
[null,1857]
[null,1858]
[null,1859]
[null,1860]
[null,1861]
[null,1862]
[null,1863]
[null,1864]
[null,1865]
[null,1866]
[null,1867]
[null,1868]
[null,1869]
[null,1870]
[null,1871]
[null,1872]
[null,1873]
[null,1874]
[null,1875]
[null,1876]
[null,1877]
[null,1878]
[null,1879]
[null,1880]
[null,1881]
[null,1882]
[null,1883]
[null,1884]
[null,1885]
[null,1886]
[null,1887]
[null,1888]
[null,1889]
[null,1890]
[null,1891]
[null,1892]
[null,1893]
[null,1894]
[null,1895]
[null,1896]
[null,1897]
[null,1898]
[null,1899]
[null,1900]
[null,1901]
[null,1902]
[null,1903]
[null,1904]
[null,1905]
[null,1906]
[null,1907]
[null,1908]
[null,1909]
[null,1910]
[null,1911]
[null,1912]
[null,1913]
[null,1914]
[null,1915]
[null,1916]
[null,1917]
[null,1918]
[null,1919]
[null,1920]
[null,1921]
[null,1922]
[null,1923]
[null,1924]
[null,1925]
[null,1926]
[null,1927]
[null,1928]
[null,1929]
[null,1930]
[null,1931]
[null,1932]
[null,1933]
[null,1934]
[null,1935]
[null,1936]
[null,1937]
[null,1938]
[null,1939]
[null,1940]
[null,1941]
[null,1942]
[null,1943]
[null,1944]
[null,1945]
[null,1946]
[null,1947]
[null,1948]
[null,1949]
[null,1950]
[null,1951]
[null,1952]
[null,1953]
[null,1954]
[null,1955]
[null,1956]
[null,1957]
[null,1958]
[null,1959]
[null,1960]
[null,1961]
[null,1962]
[null,1963]
[null,1964]
[null,1965]
[null,1966]
[null,1967]
[null,1968]
[null,1969]
[null,1970]
[null,1971]
[null,1972]
[null,1973]
[null,1974]
[null,1975]
[null,1976]
[null,1977]
[null,1978]
[null,1979]
[null,1980]
[null,1981]
[null,1982]
[null,1983]
[null,1984]
[null,1985]
[null,1986]
[null,1987]
[null,1988]
[null,1989]
[null,1990]
[null,1991]
[null,1992]
[null,1993]
[null,1994]
[null,1995]
[null,1996]
[null,1997]
[null,1998]
[null,1999]
[null,2000]
[null,2001]
[null,2002]
[null,2003]
[null,2004]
[null,2005]
[null,2006]
[null,2007]
[null,2008]
[null,2009]
[null,2010]
[null,2011]
[null,2012]
[null,2013]
[null,2014]
[null,2015]
[null,2016]
[null,2017]
[null,2018]
[null,2019]
[null,2020]
[null,2021]
[null,2022]
[null,2023]
[null,2024]
[null,2025]
[null,2026]
[null,2027]
[null,2028]
[null,2029]
[null,2030]
[null,2031]
[null,2032]
[null,2033]
[null,2034]
[null,2035]
[null,2036]
[null,2037]
[null,2038]
[null,2039]
[null,2040]
[null,2041]
[null,2042]
[null,2043]
[null,2044]
[null,2045]
[null,2046]
[null,2047]
[null,2048]
[null,2049]
[null,2050]
[null,2051]
[null,2052]
[null,2053]
[null,2054]
[null,2055]
[null,2056]
[null,2057]
[null,2058]
[null,2059]
[null,2060]
[null,2061]
[null,2062]
[null,2063]
[null,2064]
[null,2065]
[null,2066]
[null,2067]
[null,2068]
[null,2069]
[null,2070]
[null,2071]
[null,2072]
[null,2073]
[null,2074]
[null,2075]
[null,2076]
[null,2077]
[null,2078]
[null,2079]
[null,2080]
[null,2081]
[null,2082]
[null,2083]
[null,2084]
[null,2085]
[null,2086]
[null,2087]
[null,2088]
[null,2089]
[null,2090]
[null,2091]
[null,2092]
[null,2093]
[null,2094]
[null,2095]
[null,2096]
[null,2097]
[null,2098]
[null,2099]
[null,2100]
[null,2101]
[null,2102]
[null,2103]
[null,2104]
[null,2105]
[null,2106]
[null,2107]
[null,2108]
[null,2109]
[null,2110]
[null,2111]
[null,2112]
[null,2113]
[null,2114]
[null,2115]
[null,2116]
[null,2117]
[null,2118]
[null,2119]
[null,2120]
[null,2121]
[null,2122]
[null,2123]
[null,2124]
[null,2125]
[null,2126]
[null,2127]
[null,2128]
[null,2129]
[null,2130]
[null,2131]
[null,2132]
[null,2133]
[null,2134]
[null,2135]
[null,2136]
[null,2137]
[null,2138]
[null,2139]
[null,2140]
[null,2141]
[null,2142]
[null,2143]
[null,2144]
[null,2145]
[null,2146]
[null,2147]
[null,2148]
[null,2149]
[null,2150]
[null,2151]
[null,2152]
[null,2153]
[null,2154]
[null,2155]
[null,2156]
[null,2157]
[null,2158]
[null,2159]
[null,2160]
[null,2161]
[null,2162]
[null,2163]
[null,2164]
[null,2165]
[null,2166]
[null,2167]
[null,2168]
[null,2169]
[null,2170]
[null,2171]
[null,2172]
[null,2173]
[null,2174]
[null,2175]
[null,2176]
[null,2177]
[null,2178]
[null,2179]
[null,2180]
[null,2181]
[null,2182]
[null,2183]
[null,2184]
[null,2185]
[null,2186]
[null,2187]
[null,2188]
[null,2189]
[null,2190]
[null,2191]
[null,2192]
[null,2193]
[null,2194]
[null,2195]
[null,2196]
[null,2197]
[null,2198]
[null,2199]
[null,2200]
[null,2201]
[null,2202]
[null,2203]
[null,2204]
[null,2205]
[null,2206]
[null,2207]
[null,2208]
[null,2209]
[null,2210]
[null,2211]
[null,2212]
[null,2213]
[null,2214]
[null,2215]
[null,2216]
[null,2217]
[null,2218]
[null,2219]
[null,2220]
[null,2221]
[null,2222]
[null,2223]
[null,2224]
[null,2225]
[null,2226]
[null,2227]
[null,2228]
[null,2229]
[null,2230]
[null,2231]
[null,2232]
[null,2233]
[null,2234]
[null,2235]
[null,2236]
[null,2237]
[null,2238]
[null,2239]
[null,2240]
[null,2241]
[null,2242]
[null,2243]
[null,2244]
[null,2245]
[null,2246]
[null,2247]
[null,2248]
[null,2249]
[null,2250]
[null,2251]
[null,2252]
[null,2253]
[null,2254]
[null,2255]
[null,2256]
[null,2257]
[null,2258]
[null,2259]
[null,2260]
[null,2261]
[null,2262]
[null,2263]
[null,2264]
[null,2265]
[null,2266]
[null,2267]
[null,2268]
[null,2269]
[null,2270]
[null,2271]
[null,2272]
[null,2273]
[null,2274]
[null,2275]
[null,2276]
[null,2277]
[null,2278]
[null,2279]
[null,2280]
[null,2281]
[null,2282]
[null,2283]
[null,2284]
[null,2285]
[null,2286]
[null,2287]
[null,2288]
[null,2289]
[null,2290]
[null,2291]
[null,2292]
[null,2293]
[null,2294]
[null,2295]
[null,2296]
[null,2297]
[null,2298]
[null,2299]
[null,2300]
[null,2301]
[null,2302]
[null,2303]
[null,2304]
[null,2305]
[null,2306]
[null,2307]
[null,2308]
[null,2309]
[null,2310]
[null,2311]
[null,2312]
[null,2313]
[null,2314]
[null,2315]
[null,2316]
[null,2317]
[null,2318]
[null,2319]
[null,2320]
[null,2321]
[null,2322]
[null,2323]
[null,2324]
[null,2325]
[null,2326]
[null,2327]
[null,2328]
[null,2329]
[null,2330]
[null,2331]
[null,2332]
[null,2333]
[null,2334]
[null,2335]
[null,2336]
[null,2337]
[null,2338]
[null,2339]
[null,2340]
[null,2341]
[null,2342]
[null,2343]
[null,2344]
[null,2345]
[null,2346]
[null,2347]
[null,2348]
[null,2349]
[null,2350]
[null,2351]
[null,2352]
[null,2353]
[null,2354]
[null,2355]
[null,2356]
[null,2357]
[null,2358]
[null,2359]
[null,2360]
[null,2361]
[null,2362]
[null,2363]
[null,2364]
[null,2365]
[null,2366]
[null,2367]
[null,2368]
[null,2369]
[null,2370]
[null,2371]
[null,2372]
[null,2373]
[null,2374]
[null,2375]
[null,2376]
[null,2377]
[null,2378]
[null,2379]
[null,2380]
[null,2381]
[null,2382]
[null,2383]
[null,2384]
[null,2385]
[null,2386]
[null,2387]
[null,2388]
[null,2389]
[null,2390]
[null,2391]
[null,2392]
[null,2393]
[null,2394]
[null,2395]
[null,2396]
[null,2397]
[null,2398]
[null,2399]
[null,2400]
[null,2401]
[null,2402]
[null,2403]
[null,2404]
[null,2405]
[null,2406]
[null,2407]
[null,2408]
[null,2409]
[null,2410]
[null,2411]
[null,2412]
[null,2413]
[null,2414]
[null,2415]
[null,2416]
[null,2417]
[null,2418]
[null,2419]
[null,2420]
[null,2421]
[null,2422]
[null,2423]
[null,2424]
[null,2425]
[null,2426]
[null,2427]
[null,2428]
[null,2429]
[null,2430]
[null,2431]
[null,2432]
[null,2433]
[null,2434]
[null,2435]
[null,2436]
[null,2437]
[null,2438]
[null,2439]
[null,2440]
[null,2441]
[null,2442]
[null,2443]
[null,2444]
[null,2445]
[null,2446]
[null,2447]
[null,2448]
[null,2449]
[null,2450]
[null,2451]
[null,2452]
[null,2453]
[null,2454]
[null,2455]
[null,2456]
[null,2457]
[null,2458]
[null,2459]
[null,2460]
[null,2461]
[null,2462]
[null,2463]
[null,2464]
[null,2465]
[null,2466]
[null,2467]
[null,2468]
[null,2469]
[null,2470]
[null,2471]
[null,2472]
[null,2473]
[null,2474]
[null,2475]
[null,2476]
[null,2477]
[null,2478]
[null,2479]
[null,2480]
[null,2481]
[null,2482]
[null,2483]
[null,2484]
[null,2485]
[null,2486]
[null,2487]
[null,2488]
[null,2489]
[null,2490]
[null,2491]
[null,2492]
[null,2493]
[null,2494]
[null,2495]
[null,2496]
[null,2497]
[null,2498]
[null,2499]
[null,2500]
[]
[null,null,null,null,"※19-22の設問については、「18. 在籍状況（2019年４月１日時点）」において、「3.同一機関内で職階・職種を変更（ポストドクター等以外の職）」もしくは「4.当該機関を転出」を選択した場合にのみお答えください。それ以外は、空欄としてください。"]
[null,null,null,null,"※「23. 詳細」欄には、わかる範囲で、以下の詳細についてご記入ください。\t"]
[null,null,null,null,null,"（ア） 職業等がわかる場合には、その詳細（「特任助教（テニュアトラック）」、「リサーチ・アドミニストレーター」、「弁理士」、「博物館学芸員」、「サイエンスライター」、「バイオベンチャー起業」等）"]
[null,null,null,null,null,"（イ） 民間企業等に就職した場合には、その機関名、業種等の詳細（「株式会社△△」、「化学工業」等）"]
[null,null,null,null,null,"（ウ） 「無職」の場合は、その内容（「就職活動中」、「病気療養」等）"]

{"sheet":"コード表","index":1,"n_rows":97,"n_cols":14,"rows_kept":97,"cut":false,"hidden":false,"merged":[[66,12,66,13],[12,8,12,9],[13,8,13,9],[23,12,23,13],[30,12,30,13],[92,8,92,9],[90,8,90,9],[23,8,23,9],[36,8,36,9],[41,8,41,9],[47,8,47,9],[58,8,58,9],[60,8,60,9],[65,8,65,9],[69,8,69,9],[71,8,71,9],[76,8,76,9],[37,1,37,2],[42,1,42,2],[3,4,3,6],[8,8,8,10],[24,4,24,5],[23,4,23,5],[22,4,22,5],[21,4,21,5],[7,4,7,5],[8,4,8,5],[9,4,9,5],[17,4,17,5],[11,4,11,5],[20,4,20,5],[19,4,19,5],[18,4,18,5],[96,8,96,9],[73,8,73,9],[84,8,84,9],[86,8,86,9],[88,8,88,9],[91,8,91,9],[94,8,94,9],[79,8,79,9],[81,8,81,9],[82,8,82,9],[93,8,93,9],[95,8,95,9],[83,8,83,9],[85,8,85,9],[87,8,87,9],[89,8,89,9],[71,4,71,5],[26,4,26,6],[27,4,33,4],[34,4,44,4],[54,4,58,4],[45,4,53,4],[67,4,70,4],[63,4,66,4],[59,4,62,4],[16,4,16,5],[15,4,15,5],[6,4,6,5],[5,4,5,5],[12,4,12,5],[3,12,3,13],[7,12,7,13],[13,4,13,5],[14,4,14,5],[1,1,1,13],[10,4,10,5],[4,4,4,5],[4,8,4,9],[3,8,3,10],[5,8,5,9],[6,8,6,9],[3,1,3,2],[7,1,7,2],[9,8,9,9],[10,8,10,9],[11,8,11,9]]}
[]
[null,"コード表一覧"]
[]
[null,"3. 性別",null,null,"9. 所属・20. 所属",null,null,null,"12. 在籍研究室の企業との共同・受託研究の実績　※8",null,null,null,"14. 機関負担の社会保険（厚生年金、健康保険）加入状況"]
[null,"男性",1,null,"教育機関",null,null,null,"民間企業との共同・受託研究契約あり",null,1,null,"負担している",1]
[null,"女性",2,null,"　　国内の教育機関",null,null,null,"民間企業との共同・受託研究契約なし",null,2,null,"負担していない",2]
[null,null,null,null,"　　　　国立大学法人（附属病院を含む）",null,11,null,"不明",null,9]
[null,"4. 国籍・地域・10. 所在・21. 所在",null,null,"　　　　公立大学（附属病院を含む）",null,12,null,null,null,null,null,"16.任期の長さ・17.契約可能な最長期間"]
[null,"日本 ",10,null,"　　　　私立大学（附属病院を含む）",null,13,null,"13.主な雇用財源 ※9（別表２参照）",null,null,null,"1年未満",1]
[null,"北・中・南米",null,null,"　　　　大学共同利用機関",null,14,null,"競争的資金（直接経費）",null,null,null,"1年",2]
[null,"　　アメリカ合衆国",21,null,"　　　　高専・短大",null,15,null,"　　文部科学省関連の競争的資金",null,null,null,"1年を超え2年未満",3]
[null,"　　カナダ",22,null,"　　　　幼稚園・特別支援学校・小学校・中学校・高等学校",null,16,null,"　　　　科学研究費補助金【JSPS】",null,1,null,"2年以上3年未満",4]
[null,"　　ブラジル",23,null,"　　　　上記以外の教育機関（塾・予備校など） ※4",null,19,null,"　　　　未来社会創造事業【JST】",null,2,null,"3年以上4年未満",5]
[null,"欧州（ヨーロッパ）",null,null,"　　国外の教育機関",null,null,null,"　　　　戦略的創造研究推進事業",null,null,null,"4年以上5年未満",6]
[null,"　　フランス",31,null,"　　　　国立・公立大学相当（附属病院を含む）",null,21,null,null,"新技術シーズ創出：CREST【JST】",3,null,"5年以上6年未満",7]
[null,"　　ロシア",32,null,"　　　　私立大学相当（附属病院を含む）",null,22,null,null,"新技術シーズ創出：さきがけ【JST】",4,null,"6年以上7年未満",8]
[null,"　　ドイツ",33,null,"　　　　上記以外の教育機関（分類不能を含む）",null,29,null,null,"新技術シーズ創出：ERATO【JST】",5,null,"7年以上8年未満",9]
[null,"　　イギリス",34,null,"公的研究機関 ※5",null,30,null,null,"新技術シーズ創出：ACCEL【JST】",6,null,"8年以上9年未満",10]
[null,"アジア",null,null,"官公庁 ※6",null,40,null,null,"革新的先端研究開発支援事業:AMED-CREST【AMED】",7,null,"9年以上10年未満",11]
[null,"　　中国",41,null,"民間企業（起業、自営業を含む）",null,50,null,null,"革新的先端研究開発支援事業:PRIME【AMED】",8,null,"10年以上",12]
[null,"　　台湾",42,null,"非営利団体（公益法人、NPO法人、医療法人など）",null,60,null,null,"革新的先端研究開発支援事業:LEAP【AMED】",9,null,"雇用関係なし",13]
[null,"　　韓国",43,null,"国際機関",null,70,null,null,"ALCA(先端的低炭素化技術開発)【JST】","10",null,"不明",99]
[null,"　　タイ",44,null,"その他の機関（分類不能な機関を含む）",null,80,null,null,"社会技術研究開発【JST】","11"]
[null,"　　インドネシア",45,null,"無所属（無職、専業主夫・婦など）",null,90,null,"　　　　研究成果展開事業",null,null,null,"18. 在籍状況"]
[null,"　　ベトナム",46,null,"不明",null,99,null,null,"研究成果最適展開支援プログラム（A-STEP）【JST】","12",null,"変更なし",1]
[null,"　　バングラデシュ",47,null,null,null,null,null,null,"産学共創基礎基盤研究プログラム【JST】","13",null,"同一機関内でポストドクター等として雇用財源・研究室を変更",2]
[null,"　　マレーシア",48,null,"11. 分野  ※7　",null,null,null,null,"戦略的イノベーション創出推進プログラム【JST】","14",null,"同一機関内で職階・職種を変更（ポストドクター等以外の職）",3]
[null,"　　インド",49,null,"理学","数学",101,null,null,"地域産学バリュープログラム【JST】","15",null,"当該機関を転出",4]
[null,"オセアニア",null,null,null,"情報科学",102,null,null,"大学発新産業創出プログラム(START)【JST】","16",null,"不明・死亡",9]
[null,"　　オーストラリア",51,null,null,"物理",103,null,null,"事業プロモーター支援型【JST】","17"]
[null,"アフリカ",null,null,null,"化学",104,null,null,"SCORE【JST】","18",null,"19. 転出・異動後の職業等"]
[null,"　　エジプト",61,null,null,"生物",105,null,null,"センター･オブ･イノベーション（COI）プログラム【JST】","19",null,"研究・開発職"]
[null,"中近東",null,null,null,"地学",106,null,null,"世界に誇る地域発研究開発・実証拠点（リサーチコンプレックス）推進プログラム【JST】","20",null,"　　ポストドクター等　※1",11]
[null,"　　イラン",71,null,null,"その他（分類不能を含む）",109,null,null,"産学共創プラットフォーム共同研究推進プログラム【JST】","21",null,"　　大学教員（高専、短大、大学共同利用機関を含む）（ポストドクター等を除く）"]
[null,"上記以外の国・地域別（セルに直接記入してください）",null,null,"工学","機械・船舶",201,null,null,"共創プラットフォーム育成型【JST】","22",null,"　　　　助教・助手",12]
[null,"不明",99,null,null,"電気・通信",202,null,null,"先端計測分析技術・機器開発プログラム【JST】","23",null,"　　　　講師",13]
[null,null,null,null,null,"土木・建築",203,null,"　　　　医療分野研究成果展開事業【AMED】",null,null,null,"　　　　准教授",14]
[null,"7. 博士号の有無",null,null,null,"応用化学",204,null,null,"研究成果最適展開支援プログラム（A-STEP)【AMED】","24",null,"　　　　教授",15]
[null,"博士号あり（国内機関より授与）",1,null,null,"応用理学",205,null,null,"戦略的イノベーション創出推進プログラム【AMED】","25",null,"　　　　職階不明",19]
[null,"博士号あり（国外機関より授与）",2,null,null,"原子力",206,null,null,"先端計測分析技術・先端機器開発タイプ【AMED】","26",null,"　　大学教員以外の研究・開発職（ポストドクター等を除く）"]
[null,"博士号なし（満期退学）",3,null,null,"材料",207,null,null,"産学連携医療イノベーション創出プログラム【AMED】","27",null,"　　　　研究・開発グループ・リーダー、主任研究員（相当）",21]
[null,null,null,null,null,"繊維",208,null,"　　　　国際科学技術共同研究推進事業",null,null,null,"　　　　上記以外の研究・開発者（ポストドクター等を除く）",22]
[null,"8. 採用前の職業等",null,null,null,"航空",209,null,null,"地球規模課題対応国際科学技術協力プログラム(SATREPS)【JST】","28",null,"　　派遣型研究・開発者（登録型、常用型）　※10",23]
[null,"学生",null,null,null,"経営工学",210,null,null,"戦略的国際共同研究プログラム(SICORP)【JST】","29",null,"　　研究補助者・技能者など（技術職員など）　※2",24]
[null,"　　博士課程学生（自機関の博士課程出身者）",11,null,null,"その他（分類不能を含む）",299,null,null,"地球規模課題対応国際科学技術協力プログラム（SATREPS)【AMED】","30",null,"　　その他の研究・開発職（分類不能を含む）",25]
[null,"　　博士課程学生（他機関の博士課程出身者）",12,null,"農学","農学",301,null,null,"戦略的国際共同研究プログラム（SICORP)【AMED】","31",null,"非研究・開発職"]
[null,"　　上記以外の学生（分類不能を含む）",13,null,null,"農芸化学",302,null,null,"アフリカにおける顧みられない熱帯病(NTDs)対策のための国際共同研究プログラム【AMED】","32",null,"　　教育関係職"]
[null,"研究・開発職",null,null,null,"農業工学",303,null,"　　　　国家課題対応型研究開発推進事業",null,null,null,"　　　　教員（幼稚園・特別支援学校・小学校・中学校・高等学校）",31]
[null,"　　ポストドクター等　※1",21,null,null,"農業経済",304,null,null,"社会のニーズを踏まえたライフサイエンス（再生医療実現拠点ネットワークプログラム）【AMED】","33",null,"　　　　その他の教育職（塾・予備校講師など）",32]
[null,"　　大学教員（高専、短大、大学共同利用機関を含む）",22,null,null,"林学",305,null,null,"社会のニーズを踏まえたライフサイエンス（脳科学研究戦略推進プログラム・脳機能ネットワークの全容解明プロジェクト）【AMED】","34",null,"　　　　上記以外の教育関係職（教育支援・カウンセラーなど）・分類不能な教育関係職",33]
[null,"　　その他の研究・開発職（分類不能を含む）",23,null,null,"林産学",306,null,null,"光・量子科学研究拠点形成に向けた基盤技術開発","35",null,"　　専門知識を要する職業"]
[null,"　　研究補助者・技能者など（技術職員など）　※2",24,null,null,"獣医・畜産",307,null,null,"光・量子飛躍フラッグシッププログラム（Q-LEAP）","36",null,"　　　　医師、歯科医師、獣医師、薬剤師",41]
[null,"非研究・開発職",null,null,null,"水産",308,null,null,"統合型材料開発プロジェクト","37",null,"　　　　知的財産関連職（弁護士、弁理士など） ※11",42]
[null,"　　教員（幼稚園・特別支援学校・小学校・中学校・高等学校）",31,null,null,"その他（分類不能を含む）",309,null,null,"元素戦略プロジェクト","38",null,"　　　　産学連携コーディネーター ※12",43]
[null,"　　教員以外の非研究・開発職　※3",32,null,"保健","医学",401,null,null,"宇宙航空科学技術推進委託費","39",null,"　　　　リサーチ・アドミニストレータ―  ※13",44]
[null,"その他分類不能な職",40,null,null,"歯学",402,null,null,"原子力システム研究開発事業","40",null,"　　　　科学技術コミュニケーター（科学記者、学芸員など） ※14",45]
[null,"無職（専業主夫・婦を含む）",50,null,null,"薬学",403,null,null,"英知を結集した原子力科学技術・人材育成推進事業","41",null,"　　　　その他の専門知識を要する非研究・開発職",46]
[null,"不明",99,null,null,"看護",404,null,null,"省エネルギー社会の実現に資する次世代半導体研究開発","42",null,"　　公務員（教育関係職、専門知識を要する職を除く）",47]
[null,null,null,null,null,"その他（分類不能を含む）",409,null,"　　内閣府関連の競争的資金  ",null,null,null,"　　起業（ベンチャーなど）",48]
[null,null,null,null,"人文","文学",501,null,null,"食品健康影響評価技術研究","43",null,"　　その他の非研究・開発職（事務職など）、分類不能な職業",49]
[null,null,null,null,null,"史学",502,null,"　　総務省関連の競争的資金",null,null,null,"その他"]
[null,null,null,null,null,"哲学",503,null,null,"戦略的情報通信研究開発推進事業","44",null,"　　学生",50]
[null,null,null,null,null,"その他（分類不能を含む）",509,null,null,"ＩＣＴイノベーション創出チャレンジプログラム","45",null,"　　専業主夫・婦",60]
[null,null,null,null,"社会","法学・政治",511,null,null,"デジタル・ディバイド解消に向けた技術等研究開発","46",null,"　　無職（専業主夫・婦を除く）",70]
[null,null,null,null,null,"商学・経済",512,null,null,"消防防災科学技術研究推進制度","47",null,"不明",99]
[null,null,null,null,null,"社会学",513,null,"　　厚生労働省関連の競争的資金"]
[null,null,null,null,null,"その他（分類不能を含む）",519,null,null,"厚生労働科学研究費補助金","48",null,"22. 任期"]
[null,null,null,null,"その他","心理学",601,null,null,"医療研究開発推進事業費補助金","49",null,"あり"]
[null,null,null,null,null,"家政",602,null,null,"保健衛生医療調査等推進事業費補助金","50",null,"　　テニュアトラック※15",1]
[null,null,null,null,null,"教育",603,null,"　　農林水産省関連の競争的資金",null,null,null,"　　テニュアトラック以外で任期あり（テニュアトラックかどうか不明を含む）",2]
[null,null,null,null,null,"芸術・その他",609,null,null,"イノベーション創出強化研究推進事業","51",null,"なし",3]
[null,null,null,null,"不明",null,999,null,"　　経済産業省関連の競争的資金",null,null,null,"非該当（学生・無職など）",8]
[null,null,null,null,null,null,null,null,null,"戦略的基盤技術高度化・連携支援事業（戦略的基盤技術高度化支援事業）","52",null,"不明",9]
[null,null,null,null,null,null,null,null,"　　国土交通省関連の競争的資金"]
[null,null,null,null,null,null,null,null,null,"建設技術研究開発助成制度","53"]
[null,null,null,null,null,null,null,null,null,"交通運輸技術開発推進制度","54"]
[null,null,null,null,null,null,null,null,"　　環境省関連の競争的資金"]
[null,null,null,null,null,null,null,null,null,"環境研究総合推進費","55"]
[null,null,null,null,null,null,null,null,null,"放射線安全規制研究戦略的推進事業費","56"]
[null,null,null,null,null,null,null,null,"　　防衛省関連の競争的資金"]
[null,null,null,null,null,null,null,null,null,"安全保障技術研究推進制度","57"]
[null,null,null,null,null,null,null,null,"競争的資金以外の外部資金"]
[null,null,null,null,null,null,null,null,"        戦略的イノベーション創造プログラム（SIP）",null,"58"]
[null,null,null,null,null,null,null,null,"        革新的研究開発プログラム（ImPACT）",null,"59"]
[null,null,null,null,null,null,null,null,"　　　　世界トップレベル研究拠点プログラム(WPI)",null,"60"]
[null,null,null,null,null,null,null,null,"　　　　科学技術人材育成費補助金",null,"61"]
[null,null,null,null,null,null,null,null,"　　　　博士課程教育リーディングプログラム",null,"62"]
[null,null,null,null,null,null,null,null,"　　　　上記以外の政府からの外部資金",null,"63"]
[null,null,null,null,null,null,null,null,"　　　　政府以外からの外部資金（民間企業・財団等）",null,"64"]
[null,null,null,null,null,null,null,null,"運営費交付金、私学助成、その他の自主財源",null,"65"]
[null,null,null,null,null,null,null,null,"間接経費",null,"66"]
[null,null,null,null,null,null,null,null,"フェローシップ"]
[null,null,null,null,null,null,null,null,"　　　　日本学術振興会特別研究員",null,"67"]
[null,null,null,null,null,null,null,null,"　　　　日本学術振興会外国人特別研究員",null,"68"]
[null,null,null,null,null,null,null,null,"　　　　その他のフェローシップ",null,"69"]
[null,null,null,null,null,null,null,null,"その他（主な雇用財源が判別できない）",null,"70"]
[null,null,null,null,null,null,null,null,"雇用関係なし",null,"71"]

{"sheet":"コード・短縮項目名","index":2,"n_rows":107,"n_cols":45,"rows_kept":107,"cut":false,"hidden":true,"merged":[[1,41,1,42],[1,43,1,44],[1,22,1,23],[1,25,1,26],[1,28,1,29],[1,32,1,33],[1,35,1,36],[1,38,1,39],[1,19,1,20],[1,2,1,3],[1,5,1,6],[1,10,1,11],[1,13,1,14],[1,16,1,17]]}
[]
[null,"3.性別\n(戸籍上の)","3.性別\n(戸籍上の)",null,"4.国籍\n10.所在\n20.所在","4.国籍\n10.所在\n20.所在",null,"5.生年\n(西暦4ケタ)","6.博士課程修了年度\n(西暦4ケタ)","7.博士号の有無","7.博士号の有無",null,"8.採用前の職業","8.採用前の職業",null,"9.所属\n19.所属","9.所属\n20.所属",null,"11.分野","11. 分野  ※7",null,"12.在籍研究室の企業との共同・受託研究の実績","12.在籍研究室の企業との共同・受託研究の実績 ※8",null,"13.主な雇用財源","13.主な雇用財源 ※9",null,"14.機関負担の社会保険加入状況","14.機関負担の社会保険加入状況",null,"15.所属開始年\n(西暦4ケタ)","16任期の長さ\n","16任期の長さ\n・17.契約可能な最長期間\n",null,"17.在籍状況\n(平成28年４月１日時点)","18. 在籍状況",null,"18.転出・異動後の職業","19.転出・異動後の職業",null,"21.任期","22.任期",null,"※注釈"]
[10,{"$f":"D3&\".\"&C3","v":"1.男性"},"男性",1,null,null,99,1915,1935,{"$f":"L3&\".\"&K3","v":"1.あり(国内)"},"あり(国内)",1,{"$f":"O3&\".\"&N3","v":"11.学生(自機関の博士課程出身者)"},"学生(自機関の博士課程出身者)",11,{"$f":"R3&\".\"&Q3","v":"11.国立大学法人(附属病院を含む)"},"国立大学法人(附属病院を含む)",11,{"$f":"U3&\".\"&T3","v":"101.数学"},"数学",101,{"$f":"X3&\".\"&W3","v":"1.あり"},"あり",1,{"$f":"AA3&\".\"&Z3","v":"1.科学研究費補助金【JSPS】"},"科学研究費補助金【JSPS】",1,{"$f":"AD3&\".\"&AC3","v":"1.負担している"},"負担している",1,1935,{"$f":"AH3&\".\"&AG3","v":"1.1年未満"},"1年未満",1,{"$f":"AK3&\".\"&AJ3","v":"1.変更なし"},"変更なし",1,{"$f":"AN3&\".\"&AM3","v":"11.ポストドクター等 ※1"},"ポストドクター等 ※1",11,{"$f":"AQ3&\".\"&AP3","v":"1.あり(テニュアトラック) ※15 "},"あり(テニュアトラック) ※15 ",1,"※1","博士の学位を取得した者又は所定の単位を修得の上博士課程を退学した者（いわゆる「満期退学者」）のうち，任期付で採用されている者で，①大学や大学共同利用機関で研究業務に従事している者であって，教授・准教授・助教・助手等の学校教育法第92条に基づく教育・研究に従事する職にない者，又は，②独立行政法人等の公的研究機関（国立試験研究機関，公的試験研究機関を含む。）において研究業務に従事している者のうち，所属する研究グループのリーダー・主任研究員等の管理的な職にない者をいう。"]
[20,"2.女性","女性",2,{"$f":"G4&\".\"&F4","v":"10.日本"},"日本",10,2000,2018,"2.あり(国外)","あり(国外)",2,{"$f":"O4&\".\"&N4","v":"12.学生(他機関の博士課程出身者)"},"学生(他機関の博士課程出身者)",12,{"$f":"R4&\".\"&Q4","v":"12.公立大学(附属病院を含む)"},"公立大学(附属病院を含む)",12,"102.情報科学","情報科学",102,"2.なし","なし",2,"2.未来社会創造事業【JST】","未来社会創造事業【JST】",2,"2.負担していない","負担していない",2,2018,"2.1年","1年",2,"2.同一機関内でポストドクター等として雇用財源・研究室を変更","同一機関内でポストドクター等として雇用財源・研究室を変更",2,"12.助教・助手(大学教員)","助教・助手(大学教員)",12,"2.あり(上記以外)","あり(上記以外)",2,"※2","「研究補助者・技能者など」とは、研究業務に従事する者のうち、研究者を除く研究補助者、技能者及び研究事務その他の関係者を指します。分類は、総務省「科学技術研究調査報告」の「研究関係従業者」の定義に従います。（研究補助者：　研究者を補佐し、その指導に従って研究関係業務に従事する者；　技能者：　研究補助者以外の者で、研究者、研究補助者の指導及び監督の下に研究に付随する技術的サービスを行う者；研究事務その他の関係者：　研究関係業務のうち庶務、会計、雑務等に従事する者）"]
[null,null,null,null,"21.アメリカ合衆国","アメリカ合衆国",21,null,null,"3.なし(満期退学)","なし(満期退学)",3,"13.上記以外の学生(分類不能を含む)","上記以外の学生(分類不能を含む)",13,"13.私立大学(附属病院を含む)","私立大学(附属病院を含む)",13,"103.物理","物理",103,"9.不明","不明",9,"3.新技術シーズ創出：CREST【JST】","新技術シーズ創出：CREST【JST】",3,null,null,null,null,"3.1年を超え2年未満","1年を超え2年未満",3,"3.同一機関内で職階・職種を変更(ポストドクター等以外の職)","同一機関内で職階・職種を変更(ポストドクター等以外の職)",3,"13.講師(大学教員)","講師(大学教員)",13,"3.なし","なし",3,"※3","非研究・開発職に含まれる職業は、コード表「19.転出・異動後の職業等」の例示を参照してください。"]
[null,null,null,null,"22.カナダ","カナダ",22,null,null,null,null,null,"21.ポストドクター等 ※1","ポストドクター等 ※1",21,"14.大学共同利用機関","大学共同利用機関",14,"104.化学","化学",104,null,null,null,"4.新技術シーズ創出：さきがけ【JST】","新技術シーズ創出：さきがけ【JST】",4,null,null,null,null,"4.2年以上3年未満","2年以上3年未満",4,"4.当該機関を転出","当該機関を転出",4,"14.准教授(大学教員)","准教授(大学教員)",14,"8.非該当(学生・無職など)","非該当(学生・無職など)",8,"※4","博物館、大学校、専修学校、塾等を含みます。"]
[null,null,null,null,"23.ブラジル","ブラジル",23,null,null,null,null,null,"22.大学教員(高専・短大・大学共同利用機関を含む)","大学教員(高専・短大・大学共同利用機関を含む)",22,"15.高専・短大","高専・短大",15,"105.生物","生物",105,null,null,null,"5.新技術シーズ創出：ERATO【JST】","新技術シーズ創出：ERATO【JST】",5,null,null,null,null,"5.3年以上4年未満","3年以上4年未満",5,"9.不明・死亡","不明・死亡",9,"15.教授(大学教員)","教授(大学教員)",15,"9.不明","不明",9,"※5","研究開発法人、特殊法人、国立試験研究機関、公設試験研究機関を意味します。"]
[null,null,null,null,"31.フランス","フランス",31,null,null,null,null,null,"23.その他の研究・開発職(分類不能を含む)","その他の研究・開発職(分類不能を含む)",23,"16.幼稚園・特別支援学校・小・中・高校","幼稚園・特別支援学校・小・中・高校",16,"106.地学","地学",106,null,null,null,"6.新技術シーズ創出：ACCEL【JST】","新技術シーズ創出：ACCEL【JST】",6,null,null,null,null,"6.4年以上5年未満","4年以上5年未満",6,null,null,null,"19.職階不明(大学教員)","職階不明(大学教員)",19,null,null,null,"※6","国又は地方公共団体の機関のうち，中央官庁及び都道府県庁など本来の立法事務、司法事務及び行政事務を行う官公署を指します。"]
[null,null,null,null,"32.ロシア","ロシア",32,null,null,null,null,null,"24.研究補助者・技能者など（技術職員など）　※2","研究補助者・技能者など（技術職員など）　※2",24,"19.上記以外の教育機関 ※4","上記以外の教育機関 ※4",19,"109.理学その他","理学その他",109,null,null,null,"7.革新的先端研究開発支援事業:AMED-CREST【AMED】","革新的先端研究開発支援事業:AMED-CREST【AMED】",7,null,null,null,null,"7.5年以上6年未満","5年以上6年未満",7,null,null,null,"21.研究・開発グループ・リーダー・主任研究員(相当)","研究・開発グループ・リーダー・主任研究員(相当)",21,null,null,null,"※7","「分野」コードは、総務省「科学技術研究調査報告」の大学等における「研究本務者の専門別」分類に従います。"]
[null,null,null,null,"33.ドイツ","ドイツ",33,null,null,null,null,null,"31.教員(幼稚園・特別支援学校・小・中・高校)","教員(幼稚園・特別支援学校・小・中・高校)",31,"21.国立・公立大学相当(附属病院を含む)","国立・公立大学相当(附属病院を含む)",21,"201.機械・船舶","機械・船舶",201,null,null,null,"8.革新的先端研究開発支援事業:PRIME【AMED】","革新的先端研究開発支援事業:PRIME【AMED】",8,null,null,null,null,"8.6年以上7年未満","6年以上7年未満",8,null,null,null,"22.上記以外の研究・開発者(ポストドクター等を除く)","上記以外の研究・開発者(ポストドクター等を除く)",22,null,null,null,"※8","2018年度内の所属研究室における、民間企業との共同研究または委託研究契約実績の有無をお答えください。"]
[null,null,null,null,"34.イギリス","イギリス",34,null,null,null,null,null,"32.教員以外の非研究・開発職 ※3","教員以外の非研究・開発職 ※3",32,"22.私立大学相当(附属病院を含む)","私立大学相当(附属病院を含む)",22,"202.電気・通信","電気・通信",202,null,null,null,"9.革新的先端研究開発支援事業:LEAP【AMED】","革新的先端研究開発支援事業:LEAP【AMED】",9,null,null,null,null,"9.7年以上8年未満","7年以上8年未満",9,null,null,null,"23.派遣型研究・開発者(登録型・常用型) ※10","派遣型研究・開発者(登録型・常用型) ※10",23,null,null,null,"※9","2018年度内のポストドクター等としての主な雇用財源を選択してください。なお、複数財源による雇用で、主要な財源が判別できない場合は、「70.その他（主な雇用財源が判別できない）」を選択してください。"]
[null,null,null,null,"41.中国","中国",41,null,null,null,null,null,"40.その他分類不能な職","その他分類不能な職",40,"29.上記以外の教育機関(分類不能を含む)","上記以外の教育機関(分類不能を含む)",29,"203.土木・建築","土木・建築",203,null,null,null,"10.ALCA(先端的低炭素化技術開発)【JST】","ALCA(先端的低炭素化技術開発)【JST】",10,null,null,null,null,"10.8年以上9年未満","8年以上9年未満",10,null,null,null,"24.研究補助者・技能者など（技術職員など）　※2","研究補助者・技能者など（技術職員など）　※2",24,null,null,null,"※10","派遣先で労働サービスを提供する雇用形態（労働者派遣）であり、研究・開発活動に従事することを前提とする場合に限ります。"]
[null,null,null,null,"42.台湾","台湾",42,null,null,null,null,null,"50.無職(専業主夫・婦を含む)","無職(専業主夫・婦を含む)",50,"30.公的研究機関 ※5","公的研究機関 ※5",30,"204.応用化学","応用化学",204,null,null,null,"11.社会技術研究開発【JST】","社会技術研究開発【JST】",11,null,null,null,null,"11.9年以上10年未満","9年以上10年未満",11,null,null,null,"25.その他の研究・開発職(分類不能を含む)","その他の研究・開発職(分類不能を含む)",25,null,null,null,"※11","弁護士、弁理士、特許審査官（補）、大学・公的研究機関・企業等の知的財産部門担当者などを指します。"]
[null,null,null,null,"43.韓国","韓国",43,null,null,null,null,null,"99.不明","不明",99,"40.官公庁 ※6","官公庁 ※6",40,"205.応用理学","応用理学",205,null,null,null,"12.研究成果最適展開支援プログラム（A-STEP）【JST】","研究成果最適展開支援プログラム（A-STEP）【JST】",12,null,null,null,null,"12.10年以上","10年以上",12,null,null,null,"31.教員(幼稚園・特別支援学校・小・中・高校)","教員(幼稚園・特別支援学校・小・中・高校)",31,null,null,null,"※12","大学等において優れた研究成果の発掘や企業・地域との共同研究・事業のコーディネート等を専門とする職業を指します。"]
[null,null,null,null,"44.タイ","タイ",44,null,null,null,null,null,null,null,null,"50.民間企業(起業・自営業を含む)","民間企業(起業・自営業を含む)",50,"206.原子力","原子力",206,null,null,null,"13.産学共創基礎基盤研究プログラム【JST】","産学共創基礎基盤研究プログラム【JST】",13,null,null,null,null,"13.雇用関係なし","雇用関係なし",13,null,null,null,"32.その他の教育職(塾・予備校講師など)","その他の教育職(塾・予備校講師など)",32,null,null,null,"※13","研究者とともに研究活動の企画・マネジメント、研究成果活用促進を行うことにより、研究者の研究活動の活性化や研究開発マネジメントの強化等を支える業務に従事する人材を指します。例えば、研究者とともに行う研究プロジェクトの企画、研究計画等に関する関係法令等対応状況の精査、研究プロジェクト案についての提案・交渉、研究プロジェクトの会計・財務・設備管理、研究プロジェクトの進捗管理、特許申請等研究成果のまとめ・活用促進などの業務が考えられます。"]
[null,null,null,null,"45.インドネシア","インドネシア",45,null,null,null,null,null,null,null,null,"60.非営利団体(公益・NPO・医療法人など)","非営利団体(公益・NPO・医療法人など)",60,"207.材料","材料",207,null,null,null,"14.戦略的イノベーション創出推進プログラム【JST】","戦略的イノベーション創出推進プログラム【JST】",14,null,null,null,null,{"$f":"AH16&\".\"&AG16","v":"99.不明"},"不明",99,null,null,null,"33.上記以外の教育関係職(教育支援・カウンセラーなど)","上記以外の教育関係職(教育支援・カウンセラーなど)",33,null,null,null,"※14","科学技術系研究者をはじめとする専門家と国民一般とを結ぶ役割を果たす職業を指します。例えば、科学記者、サイエンスライター、科学館・博物館関係者、大学・研究機関・企業等の広報担当者などが、これに該当します。但し、本調査では、理科教師は「教育関係職」として扱います。"]
[null,null,null,null,"46.ベトナム","ベトナム",46,null,null,null,null,null,null,null,null,"70.国際機関","国際機関",70,"208.繊維","繊維",208,null,null,null,"15.地域産学バリュープログラム【JST】","地域産学バリュープログラム【JST】",15,null,null,null,null,null,null,null,null,null,null,"41.医師・歯科医師・獣医師・薬剤師","医師・歯科医師・獣医師・薬剤師",41,null,null,null,"※15","テニュアトラックとは、 大学等において、公正で透明性の高い選抜により採用された若手研究者が審査を経てより安定的な職を得る前に、任期付の雇用形態で自立した研究者として経験を積むことができる仕組みを指します。"]
[null,null,null,null,"47.バングラデシュ","バングラデシュ",47,null,null,null,null,null,null,null,null,"80.その他の機関(分類不能な機関を含む)","その他の機関(分類不能な機関を含む)",80,"209.航空","航空",209,null,null,null,"16.大学発新産業創出プログラム(START)【JST】","大学発新産業創出プログラム(START)【JST】",16,null,null,null,null,null,null,null,null,null,null,"42.知的財産関連職(弁護士・弁理士など) ※11","知的財産関連職(弁護士・弁理士など) ※11",42]
[null,null,null,null,"48.マレーシア","マレーシア",48,null,null,null,null,null,null,null,null,"90.無所属(無職・専業主夫・婦など)","無所属(無職・専業主夫・婦など)",90,"210.経営工学","経営工学",210,null,null,null,"17.事業プロモーター支援型【JST】","事業プロモーター支援型【JST】",17,null,null,null,null,null,null,null,null,null,null,"43.産学連携コーディネーター ※12","産学連携コーディネーター ※12",43]
[null,null,null,null,"49.インド","インド",49,null,null,null,null,null,null,null,null,"99.不明","不明",99,"299.工学その他","工学その他",299,null,null,null,"18.SCORE【JST】","SCORE【JST】",18,null,null,null,null,null,null,null,null,null,null,"44.リサーチ・アドミニストレータ― ※13","リサーチ・アドミニストレータ― ※13",44]
[null,null,null,null,"51.オーストラリア","オーストラリア",51,null,null,null,null,null,null,null,null,null,null,null,"301.農学","農学",301,null,null,null,"19.センター･オブ･イノベーション（COI）プログラム【JST】","センター･オブ･イノベーション（COI）プログラム【JST】",19,null,null,null,null,null,null,null,null,null,null,"45.科学技術コミュニケーター(科学記者・学芸員など) ※14","科学技術コミュニケーター(科学記者・学芸員など) ※14",45]
[null,null,null,null,"61.エジプト","エジプト",61,null,null,null,null,null,null,null,null,null,null,null,"302.農芸化学","農芸化学",302,null,null,null,"20.世界に誇る地域発研究開発・実証拠点（リサーチコンプレックス）推進プログラム【JST】","世界に誇る地域発研究開発・実証拠点（リサーチコンプレックス）推進プログラム【JST】",20,null,null,null,null,null,null,null,null,null,null,"46.その他の専門知識を要する非研究・開発職","その他の専門知識を要する非研究・開発職",46]
[null,null,null,null,"71.イラン","イラン",71,null,null,null,null,null,null,null,null,null,null,null,"303.農業工学","農業工学",303,null,null,null,"21.産学共創プラットフォーム共同研究推進プログラム【JST】","産学共創プラットフォーム共同研究推進プログラム【JST】",21,null,null,null,null,null,null,null,null,null,null,"47.公務員(教育関係職・専門知識を要する職を除く)","公務員(教育関係職・専門知識を要する職を除く)",47]
[null,null,null,null,"99.不明","不明",99,null,null,null,null,null,null,null,null,null,null,null,"304.農業経済","農業経済",304,null,null,null,"22.共創プラットフォーム育成型【JST】","共創プラットフォーム育成型【JST】",22,null,null,null,null,null,null,null,null,null,null,"48.起業(ベンチャーなど)","起業(ベンチャーなど)",48]
[null,null,null,null,null,null,null,null,null,null,null,null,null,null,null,null,null,null,"305.林学","林学",305,null,null,null,"23.先端計測分析技術・機器開発プログラム【JST】","先端計測分析技術・機器開発プログラム【JST】",23,null,null,null,null,null,null,null,null,null,null,"49.その他の非研究・開発職(事務職など)","その他の非研究・開発職(事務職など)",49]
[null,null,null,null,null,null,null,null,null,null,null,null,null,null,null,null,null,null,"306.林産学","林産学",306,null,null,null,"24.研究成果最適展開支援プログラム（A-STEP)【AMED】","研究成果最適展開支援プログラム（A-STEP)【AMED】",24,null,null,null,null,null,null,null,null,null,null,"50.学生","学生",50]
[null,null,null,null,null,null,null,null,null,null,null,null,null,null,null,null,null,null,"307.獣医・畜産","獣医・畜産",307,null,null,null,"25.戦略的イノベーション創出推進プログラム【AMED】","戦略的イノベーション創出推進プログラム【AMED】",25,null,null,null,null,null,null,null,null,null,null,"60.専業主夫・婦","専業主夫・婦",60]
[null,null,null,null,null,null,null,null,null,null,null,null,null,null,null,null,null,null,"308.水産","水産",308,null,null,null,"26.先端計測分析技術・先端機器開発タイプ【AMED】","先端計測分析技術・先端機器開発タイプ【AMED】",26,null,null,null,null,null,null,null,null,null,null,"70.無職(専業主夫・婦を除く)","無職(専業主夫・婦を除く)",70]
[null,null,null,null,null,null,null,null,null,null,null,null,null,null,null,null,null,null,"309.農学その他","農学その他",309,null,null,null,"27.産学連携医療イノベーション創出プログラム【AMED】","産学連携医療イノベーション創出プログラム【AMED】",27,null,null,null,null,null,null,null,null,null,null,"99.不明","不明",99]
[null,null,null,null,null,null,null,null,null,null,null,null,null,null,null,null,null,null,"401.医学","医学",401,null,null,null,"28.地球規模課題対応国際科学技術協力プログラム(SATREPS)【JST】","地球規模課題対応国際科学技術協力プログラム(SATREPS)【JST】",28]
[null,null,null,null,null,null,null,null,null,null,null,null,null,null,null,null,null,null,"402.歯学","歯学",402,null,null,null,"29.戦略的国際共同研究プログラム(SICORP)【JST】","戦略的国際共同研究プログラム(SICORP)【JST】",29]
[null,null,null,null,null,null,null,null,null,null,null,null,null,null,null,null,null,null,"403.薬学","薬学",403,null,null,null,"30.地球規模課題対応国際科学技術協力プログラム（SATREPS)【AMED】","地球規模課題対応国際科学技術協力プログラム（SATREPS)【AMED】",30]
[null,null,null,null,null,null,null,null,null,null,null,null,null,null,null,null,null,null,"404.看護","看護",404,null,null,null,"31.戦略的国際共同研究プログラム（SICORP)【AMED】","戦略的国際共同研究プログラム（SICORP)【AMED】",31]
[null,null,null,null,null,null,null,null,null,null,null,null,null,null,null,null,null,null,"409.保健その他","保健その他",409,null,null,null,"32.アフリカにおける顧みられない熱帯病(NTDs)対策のための国際共同研究プログラム【AMED】","アフリカにおける顧みられない熱帯病(NTDs)対策のための国際共同研究プログラム【AMED】",32]
[null,null,null,null,null,null,null,null,null,null,null,null,null,null,null,null,null,null,"501.文学","文学",501,null,null,null,"33.社会のニーズを踏まえたライフサイエンス（再生医療実現拠点ネットワークプログラム）【AMED】","社会のニーズを踏まえたライフサイエンス（再生医療実現拠点ネットワークプログラム）【AMED】",33]
[null,null,null,null,null,null,null,null,null,null,null,null,null,null,null,null,null,null,"502.史学","史学",502,null,null,null,"34.社会のニーズを踏まえたライフサイエンス（脳科学研究戦略推進プログラム・脳機能ネットワークの全容解明プロジェクト）【AMED】","社会のニーズを踏まえたライフサイエンス（脳科学研究戦略推進プログラム・脳機能ネットワークの全容解明プロジェクト）【AMED】",34]
[null,null,null,null,null,null,null,null,null,null,null,null,null,null,null,null,null,null,"503.哲学","哲学",503,null,null,null,"35.光・量子科学研究拠点形成に向けた基盤技術開発","光・量子科学研究拠点形成に向けた基盤技術開発",35]
[null,null,null,null,null,null,null,null,null,null,null,null,null,null,null,null,null,null,"509.人文その他","人文その他",509,null,null,null,"36.光・量子飛躍フラッグシッププログラム（Q-LEAP）","光・量子飛躍フラッグシッププログラム（Q-LEAP）",36]
[null,null,null,null,null,null,null,null,null,null,null,null,null,null,null,null,null,null,"511.法学・政治","法学・政治",511,null,null,null,"37.統合型材料開発プロジェクト","統合型材料開発プロジェクト",37]
[null,null,null,null,null,null,null,null,null,null,null,null,null,null,null,null,null,null,"512.商学・経済","商学・経済",512,null,null,null,"38.元素戦略プロジェクト","元素戦略プロジェクト",38]
[null,null,null,null,null,null,null,null,null,null,null,null,null,null,null,null,null,null,"513.社会学","社会学",513,null,null,null,"39.宇宙航空科学技術推進委託費","宇宙航空科学技術推進委託費",39]
[null,null,null,null,null,null,null,null,null,null,null,null,null,null,null,null,null,null,"519.社会その他","社会その他",519,null,null,null,"40.原子力システム研究開発事業","原子力システム研究開発事業",40]
[null,null,null,null,null,null,null,null,null,null,null,null,null,null,null,null,null,null,"601.心理学","心理学",601,null,null,null,"41.英知を結集した原子力科学技術・人材育成推進事業","英知を結集した原子力科学技術・人材育成推進事業",41]
[null,null,null,null,null,null,null,null,null,null,null,null,null,null,null,null,null,null,"602.家政","家政",602,null,null,null,"42.省エネルギー社会の実現に資する次世代半導体研究開発","省エネルギー社会の実現に資する次世代半導体研究開発",42]
[null,null,null,null,null,null,null,null,null,null,null,null,null,null,null,null,null,null,"603.教育","教育",603,null,null,null,"43.食品健康影響評価技術研究","食品健康影響評価技術研究",43]
[null,null,null,null,null,null,null,null,null,null,null,null,null,null,null,null,null,null,"609.芸術・その他","芸術・その他",609,null,null,null,"44.戦略的情報通信研究開発推進事業","戦略的情報通信研究開発推進事業",44]
[null,null,null,null,null,null,null,null,null,null,null,null,null,null,null,null,null,null,"999.不明","不明",999,null,null,null,"45.ＩＣＴイノベーション創出チャレンジプログラム","ＩＣＴイノベーション創出チャレンジプログラム",45]
[null,null,null,null,null,null,null,null,null,null,null,null,null,null,null,null,null,null,null,null,null,null,null,null,"46.デジタル・ディバイド解消に向けた技術等研究開発","デジタル・ディバイド解消に向けた技術等研究開発",46]
[null,null,null,null,null,null,null,null,null,null,null,null,null,null,null,null,null,null,null,null,null,null,null,null,"47.消防防災科学技術研究推進制度","消防防災科学技術研究推進制度",47]
[null,null,null,null,null,null,null,null,null,null,null,null,null,null,null,null,null,null,null,null,null,null,null,null,"48.厚生労働科学研究費補助金","厚生労働科学研究費補助金",48]
[null,null,null,null,null,null,null,null,null,null,null,null,null,null,null,null,null,null,null,null,null,null,null,null,"49.医療研究開発推進事業費補助金","医療研究開発推進事業費補助金",49]
[null,null,null,null,null,null,null,null,null,null,null,null,null,null,null,null,null,null,null,null,null,null,null,null,"50.保健衛生医療調査等推進事業費補助金","保健衛生医療調査等推進事業費補助金",50]
[null,null,null,null,null,null,null,null,null,null,null,null,null,null,null,null,null,null,null,null,null,null,null,null,"51.イノベーション創出強化研究推進事業","イノベーション創出強化研究推進事業",51]
[null,null,null,null,null,null,null,null,null,null,null,null,null,null,null,null,null,null,null,null,null,null,null,null,"52.戦略的基盤技術高度化・連携支援事業（戦略的基盤技術高度化支援事業）","戦略的基盤技術高度化・連携支援事業（戦略的基盤技術高度化支援事業）",52]
[null,null,null,null,null,null,null,null,null,null,null,null,null,null,null,null,null,null,null,null,null,null,null,null,"53.建設技術研究開発助成制度","建設技術研究開発助成制度",53]
[null,null,null,null,null,null,null,null,null,null,null,null,null,null,null,null,null,null,null,null,null,null,null,null,"54.交通運輸技術開発推進制度","交通運輸技術開発推進制度",54]
[null,null,null,null,null,null,null,null,null,null,null,null,null,null,null,null,null,null,null,null,null,null,null,null,"55.環境研究総合推進費","環境研究総合推進費",55]
[null,null,null,null,null,null,null,null,null,null,null,null,null,null,null,null,null,null,null,null,null,null,null,null,"56.放射線安全規制研究戦略的推進事業費","放射線安全規制研究戦略的推進事業費",56]
[null,null,null,null,null,null,null,null,null,null,null,null,null,null,null,null,null,null,null,null,null,null,null,null,"57.安全保障技術研究推進制度","安全保障技術研究推進制度",57]
[null,null,null,null,null,null,null,null,null,null,null,null,null,null,null,null,null,null,null,null,null,null,null,null,"58.戦略的イノベーション創造プログラム（SIP）","戦略的イノベーション創造プログラム（SIP）",58]
[null,null,null,null,null,null,null,null,null,null,null,null,null,null,null,null,null,null,null,null,null,null,null,null,"59.革新的研究開発プログラム（ImPACT）","革新的研究開発プログラム（ImPACT）",59]
[null,null,null,null,null,null,null,null,null,null,null,null,null,null,null,null,null,null,null,null,null,null,null,null,"60.世界トップレベル研究拠点プログラム(WPI)","世界トップレベル研究拠点プログラム(WPI)",60]
[null,null,null,null,null,null,null,null,null,null,null,null,null,null,null,null,null,null,null,null,null,null,null,null,"61.科学技術人材育成費補助金","科学技術人材育成費補助金",61]
[null,null,null,null,null,null,null,null,null,null,null,null,null,null,null,null,null,null,null,null,null,null,null,null,"62.博士課程教育リーディングプログラム","博士課程教育リーディングプログラム",62]
[null,null,null,null,null,null,null,null,null,null,null,null,null,null,null,null,null,null,null,null,null,null,null,null,"63.上記以外の政府からの外部資金","上記以外の政府からの外部資金",63]
[null,null,null,null,null,null,null,null,null,null,null,null,null,null,null,null,null,null,null,null,null,null,null,null,"64.政府以外からの外部資金（民間企業・財団等）","政府以外からの外部資金（民間企業・財団等）",64]
[null,null,null,null,null,null,null,null,null,null,null,null,null,null,null,null,null,null,null,null,null,null,null,null,{"$f":"AA67&\".\"&Z67","v":"65.運営費交付金、私学助成、その他の自主財源"},"運営費交付金、私学助成、その他の自主財源",65]
[null,null,null,null,null,null,null,null,null,null,null,null,null,null,null,null,null,null,null,null,null,null,null,null,"66.間接経費","間接経費",66]
[null,null,null,null,null,null,null,null,null,null,null,null,null,null,null,null,null,null,null,null,null,null,null,null,"67.日本学術振興会特別研究員","日本学術振興会特別研究員",67]
[null,null,null,null,null,null,null,null,null,null,null,null,null,null,null,null,null,null,null,null,null,null,null,null,"68.日本学術振興会外国人特別研究員","日本学術振興会外国人特別研究員",68]
[null,null,null,null,null,null,null,null,null,null,null,null,null,null,null,null,null,null,null,null,null,null,null,null,"69.その他のフェローシップ","その他のフェローシップ",69]
[null,null,null,null,null,null,null,null,null,null,null,null,null,null,null,null,null,null,null,null,null,null,null,null,"70.その他（主な雇用財源が判別できない）","その他（主な雇用財源が判別できない）",70]
[null,null,null,null,null,null,null,null,null,null,null,null,null,null,null,null,null,null,null,null,null,null,null,null,"71.雇用関係なし","雇用関係なし",71]
[]
[]
[]
[]
[]
[]
[]
[]
[]
[]
[]
[]
[]
[]
[]
[]
[]
[]
[]
[]
[]
[]
[]
[]
[]
[]
[]
[null,null,null,null,null,null,null,null,null,null,null,null,null,"※1 博士の学位を取得した者又は所定の単位を修得の上博士課程を退学した者（いわゆる「満期退学者」）のうち，任期付で採用されている者で，①大学や大学共同利用機関で研究業務に従事している者であって，教授・准教授・助教・助手等の学校教育法第92条に基づく教育・研究に従事する職にない者，又は，②独立行政法人等の公的研究機関（国立試験研究機関，公的試験研究機関を含む。）において研究業務に従事している者のうち，所属する研究グループのリーダー・主任研究員等の管理的な職にない者をいう。",null,null,"※4 博物館、大学校、専修学校、塾等を含みます。",null,null,"※7 「分野」コードは、総務省「科学技術研究調査報告」の大学等における「研究本務者の専門別」分類に従います。",null,null,"※8 2018年度内の所属研究室における、民間企業との共同研究または委託研究契約実績の有無をお答えください。",null,null,"※9 2018年度内のポストドクター等としての主な雇用財源を選択してください。なお、複数財源による雇用で、主要な財源が判別できない場合は、「70.その他（主な雇用財源が判別できない）」を選択してください。",null,null,null,null,null,null,null,null,null,null,null,null,"※1 博士の学位を取得した者又は所定の単位を修得の上博士課程を退学した者（いわゆる「満期退学者」）のうち，任期付で採用されている者で，①大学や大学共同利用機関で研究業務に従事している者であって，教授・准教授・助教・助手等の学校教育法第92条に基づく教育・研究に従事する職にない者，又は，②独立行政法人等の公的研究機関（国立試験研究機関，公的試験研究機関を含む。）において研究業務に従事している者のうち，所属する研究グループのリーダー・主任研究員等の管理的な職にない者をいう。",null,null,"※15 テニュアトラックとは、 大学等において、公正で透明性の高い選抜により採用された若手研究者が審査を経てより安定的な職を得る前に、任期付の雇用形態で自立した研究者として経験を積むことができる仕組みを指します。"]
[null,null,null,null,null,null,null,null,null,null,null,null,null,"※2 「研究補助者・技能者など」とは、研究業務に従事する者のうち、研究者を除く研究補助者、技能者及び研究事務その他の関係者を指します。分類は、総務省「科学技術研究調査報告」の「研究関係従業者」の定義に従います。（研究補助者：　研究者を補佐し、その指導に従って研究関係業務に従事する者；　技能者：　研究補助者以外の者で、研究者、研究補助者の指導及び監督の下に研究に付随する技術的サービスを行う者；研究事務その他の関係者：　研究関係業務のうち庶務、会計、雑務等に従事する者）",null,null,"※5 研究開発法人、特殊法人、国立試験研究機関、公設試験研究機関を意味します。",null,null,null,null,null,null,null,null,null,null,null,null,null,null,null,null,null,null,null,null,null,"※10 派遣先で労働サービスを提供する雇用形態（労働者派遣）であり、研究・開発活動に従事することを前提とする場合に限ります。"]
[null,null,null,null,null,null,null,null,null,null,null,null,null,"※3 非研究・開発職に含まれる職業は、コード表「19.転出・異動後の職業等」の例示を参照してください。",null,null,"※6 国又は地方公共団体の機関のうち，中央官庁及び都道府県庁など本来の立法事務、司法事務及び行政事務を行う官公署を指します。",null,null,null,null,null,null,null,null,null,null,null,null,null,null,null,null,null,null,null,null,null,"※2 「研究補助者・技能者など」とは、研究業務に従事する者のうち、研究者を除く研究補助者、技能者及び研究事務その他の関係者を指します。分類は、総務省「科学技術研究調査報告」の「研究関係従業者」の定義に従います。（研究補助者：　研究者を補佐し、その指導に従って研究関係業務に従事する者；　技能者：　研究補助者以外の者で、研究者、研究補助者の指導及び監督の下に研究に付随する技術的サービスを行う者；研究事務その他の関係者：　研究関係業務のうち庶務、会計、雑務等に従事する者）"]
[null,null,null,null,null,null,null,null,null,null,null,null,null,null,null,null,null,null,null,null,null,null,null,null,null,null,null,null,null,null,null,null,null,null,null,null,null,null,"※11 弁護士、弁理士、特許審査官（補）、大学・公的研究機関・企業等の知的財産部門担当者などを指します。"]
[null,null,null,null,null,null,null,null,null,null,null,null,null,null,null,null,null,null,null,null,null,null,null,null,null,null,null,null,null,null,null,null,null,null,null,null,null,null,"※12 大学等において優れた研究成果の発掘や企業・地域との共同研究・事業のコーディネート等を専門とする職業を指します。"]
[null,null,null,null,null,null,null,null,null,null,null,null,null,null,null,null,null,null,null,null,null,null,null,null,null,null,null,null,null,null,null,null,null,null,null,null,null,null,"※13 研究者とともに研究活動の企画・マネジメント、研究成果活用促進を行うことにより、研究者の研究活動の活性化や研究開発マネジメントの強化等を支える業務に従事する人材を指します。例えば、研究者とともに行う研究プロジェクトの企画、研究計画等に関する関係法令等対応状況の精査、研究プロジェクト案についての提案・交渉、研究プロジェクトの会計・財務・設備管理、研究プロジェクトの進捗管理、特許申請等研究成果のまとめ・活用促進などの業務が考えられます。"]
[null,null,null,null,null,null,null,null,null,null,null,null,null,null,null,null,null,null,null,null,null,null,null,null,null,null,null,null,null,null,null,null,null,null,null,null,null,null,"※14 科学技術系研究者をはじめとする専門家と国民一般とを結ぶ役割を果たす職業を指します。例えば、科学記者、サイエンスライター、科学館・博物館関係者、大学・研究機関・企業等の広報担当者などが、これに該当します。但し、本調査では、理科教師は「教育関係職」として扱います。"]